fUST/lending_fUST_20240712
["ID","MTS","AMOUNT","RATE_DAILY","PERIOD"]
[331863086,1720797042573,-500.0,0.00025761,2]
[331863088,1720797042582,-500.0,0.00025761,2]
[331863090,1720797042592,-2145.78,0.00025761,2]
[331863092,1720797042602,-500.0,0.00025761,2]
[331863094,1720797042612,-500.0,0.00025761,2]
[331863096,1720797042622,-500.0,0.00025761,2]
[331863098,1720797042631,-692.48,0.00025761,2]
[331863099,1720797042640,-329.60300793,0.00025761,2]
[331863101,1720797042650,-676.41,0.00025761,2]
[331863104,1720797042662,-500.0,0.00025761,2]
[331863106,1720797042671,-500.0,0.00025761,2]
[331863108,1720797042682,-500.0,0.00025761,2]
[331863110,1720797042691,-514.36,0.00025761,2]
[331863112,1720797042701,-500.0,0.00025761,2]
[331863114,1720797042712,-500.0,0.00025761,2]
[331863116,1720797042722,-507.49,0.00025761,2]
[331863118,1720797042731,-500.0,0.00025761,2]
[331863120,1720797042741,-1156.39,0.00025761,2]
[331863122,1720797042751,-500.0,0.00025761,2]
[331863124,1720797042760,-500.0,0.00025761,2]
[331863126,1720797042770,-500.0,0.00025761,2]
[331863128,1720797042779,-500.0,0.00025761,2]
[331863130,1720797042789,-500.0,0.00025761,2]
[331863132,1720797042798,-500.0,0.00025761,2]
[331863134,1720797042807,-500.0,0.00025761,2]
[331863136,1720797042816,-500.0,0.00025761,2]
[331863138,1720797042826,-500.0,0.00025761,2]
[331863140,1720797042836,-500.0,0.00025761,2]
[331863142,1720797042851,-500.0,0.00025761,2]
[331863144,1720797042860,-746.35,0.00025761,2]
[331863146,1720797042869,-518.8874838,0.00025761,2]
[331863148,1720797042879,-566.43,0.00025761,2]
[331863151,1720797042888,-500.0,0.00025761,2]
[331863154,1720797042899,-634.13,0.00025761,2]
[331863157,1720797042912,-500.0,0.00025761,2]
[331863160,1720797042925,-597.2,0.00025761,2]
[331863163,1720797042934,-500.0,0.00025761,2]
[331863166,1720797042945,-500.0,0.00025761,2]
[331863169,1720797042955,-500.0,0.00025761,2]
[331863172,1720797042963,-500.0,0.00025761,2]
[331863174,1720797042973,-500.0,0.00025761,2]
[331863176,1720797042983,-301.77156905,0.00025761,2]
[331863195,1720797043132,-500.0,0.00025761,2]
[331863198,1720797043143,-177.77022196,0.00025761,2]
[331863201,1720797043153,-669.61,0.00025761,2]
[331863204,1720797043163,-500.0,0.00025761,2]
[331863207,1720797043172,-500.0,0.00025761,2]
[331863210,1720797043182,-500.0,0.00025761,2]
[331863213,1720797043191,-500.0,0.00025761,2]
[331863216,1720797043201,-500.0,0.00025761,2]
[331863220,1720797043211,-500.0,0.00025761,2]
[331863222,1720797043221,-500.0,0.00025761,2]
[331863224,1720797043230,-500.0,0.00025761,2]
[331863226,1720797043240,-500.0,0.00025761,2]
[331863228,1720797043253,-500.0,0.00025761,2]
[331863230,1720797043262,-500.0,0.00025761,2]
[331863232,1720797043272,-500.0,0.00025761,2]
[331863234,1720797043281,-324.9269038,0.00025761,2]
[331863236,1720797043290,-591.99216679,0.00025761,2]
[331863238,1720797043299,-516.35529767,0.00025761,2]
[331863240,1720797043308,-500.0,0.00025761,2]
[331863242,1720797043318,-500.0,0.00025761,2]
[331863244,1720797043327,-500.0,0.00025761,2]
[331863246,1720797043337,-500.0,0.00025761,2]
[331863249,1720797043346,-500.0,0.00025761,2]
[331863251,1720797043356,-516.06987851,0.00025761,2]
[331863253,1720797043366,-500.0,0.00025761,2]
[331863255,1720797043375,-574.84,0.00025761,2]
[331863257,1720797043385,-500.0,0.00025761,2]
[331863259,1720797043394,-500.0,0.00025761,2]
[331863261,1720797043404,-500.0,0.00025761,2]
[331863263,1720797043413,-500.0,0.00025762,2]
[331863265,1720797043423,-500.0,0.00025762,2]
[331863267,1720797043432,-572.43,0.00025762,2]
[331863269,1720797043442,-500.0,0.00025762,2]
[331863271,1720797043451,-500.0,0.00025762,2]
[331863273,1720797043460,-500.0,0.00025762,2]
[331863275,1720797043470,-500.0,0.00025762,2]
[331863277,1720797043479,-500.0,0.00025762,2]
[331863279,1720797043489,-500.0,0.00025762,2]
[331863281,1720797043499,-500.0,0.00025762,2]
[331863283,1720797043509,-603.07,0.00025762,2]
[331863285,1720797043519,-500.0,0.00025762,2]
[331863287,1720797043528,-500.0,0.00025762,2]
[331863289,1720797043538,-836.79,0.00025762,2]
[331863291,1720797043547,-500.0,0.00025762,2]
[331863293,1720797043556,-661.69,0.00025762,2]
[331863295,1720797043566,-500.0,0.00025762,2]
[331863297,1720797043576,-500.0,0.00025762,2]
[331863299,1720797043585,-500.0,0.00025762,2]
[331863301,1720797043596,-500.0,0.00025762,2]
[331863303,1720797043605,-179.02901291,0.00025762,2]
[331863306,1720797043625,-320.97098709,0.00025762,2]
[331863308,1720797043634,-500.0,0.00025762,2]
[331863310,1720797043644,-500.0,0.00025762,2]
[331863312,1720797043654,-413.23901291,0.00025762,2]
[331863398,1720797044372,-500.0,0.00024657,2]
[331863400,1720797044382,-4677.26,0.00024931,2]
[331863402,1720797044394,-4677.26,0.00025205,2]
[331863404,1720797044404,-4677.26,0.00025479,2]
[331863406,1720797044414,-770.03,0.00025741,3]
[331863408,1720797044424,-4677.26,0.00025753,2]
[331863410,1720797044433,-500.0,0.00025761,2]
[331863412,1720797044442,-500.0,0.00025761,2]
[331863414,1720797044451,-500.0,0.00025761,2]
[331863416,1720797044461,-86.76098709,0.00025762,2]
[331863418,1720797044471,-500.0,0.00025762,2]
[331863420,1720797044480,-500.0,0.00025762,2]
[331863422,1720797044490,-500.0,0.00025762,2]
[331863424,1720797044499,-500.0,0.00025762,2]
[331863426,1720797044509,-500.0,0.00025762,2]
[331863429,1720797044518,-500.0,0.00025762,2]
[331863431,1720797044528,-500.0,0.00025762,2]
[331863433,1720797044539,-594.49,0.00025762,2]
[331863435,1720797044549,-500.0,0.00025762,2]
[331863437,1720797044558,-500.0,0.00025762,2]
[331863439,1720797044567,-500.0,0.00025762,2]
[331863441,1720797044576,-610.23,0.00025762,2]
[331863443,1720797044585,-500.0,0.00025762,2]
[331863445,1720797044594,-500.0,0.00025762,2]
[331863447,1720797044604,-500.0,0.00025762,2]
[331863449,1720797044613,-500.0,0.00025762,2]
[331863451,1720797044623,-500.0,0.00025762,2]
[331863453,1720797044633,-500.0,0.00025762,2]
[331863455,1720797044642,-500.0,0.00025762,2]
[331863457,1720797044650,-683.47,0.00025762,2]
[331863459,1720797044661,-500.0,0.00025762,2]
[331863461,1720797044670,-500.0,0.00025762,2]
[331863463,1720797044680,-500.0,0.00025762,2]
[331863465,1720797044689,-1145.83,0.00025762,2]
[331863467,1720797044699,-420.0,0.00025799,2]
[331863469,1720797044709,-150.0,0.000258,2]
[331863471,1720797044718,-150.0,0.000258,2]
[331863473,1720797044727,-150.0,0.000259,2]
[331863475,1720797044737,-150.5,0.0002597,62]
[331863477,1720797044746,-150.5,0.0002598,62]
[331863479,1720797044756,-500.0,0.00025988,2]
[331863481,1720797044765,-500.0,0.00025989,2]
[331863483,1720797044774,-500.0,0.00025989,2]
[331863485,1720797044784,-500.0,0.00025989,2]
[331863487,1720797044793,-150.5,0.0002599,62]
[331863489,1720797044802,-154.41,0.0002599,62]
[331863491,1720797044811,-44413.2556872,0.0002599,3]
[331863493,1720797044821,-500.0,0.00025998,2]
[331863495,1720797044831,-500.0,0.00025998,2]
[331863497,1720797044842,-415.44914535,0.00025999,2]
[331863499,1720797044854,-500.0,0.00025999,2]
[331863502,1720797044864,-500.0,0.00025999,2]
[331863504,1720797044873,-500.0,0.00025999,2]
[331863506,1720797044883,-500.0,0.00025999,2]
[331863508,1720797044893,-500.0,0.00025999,2]
[331863510,1720797044904,-500.0,0.00025999,2]
[331863512,1720797044914,-500.0,0.00025999,2]
[331863514,1720797044924,-209.99997917,0.00025999,2]
[331863516,1720797044934,-500.0,0.00025999,2]
[331863518,1720797044945,-500.0,0.00025999,2]
[331863520,1720797044957,-500.0,0.00025999,2]
[331863522,1720797044967,-500.0,0.00025999,2]
[331863524,1720797044977,-500.0,0.00025999,2]
[331863526,1720797044986,-500.0,0.00025999,2]
[331863528,1720797044996,-500.0,0.00025999,2]
[331863530,1720797045005,-500.0,0.00025999,2]
[331863532,1720797045015,-2405.14558005,0.00026,5]
[331863534,1720797045025,-22914.6571994,0.00026,2]
[331863590,1720797046736,-500.0,0.00024657,2]
[331863591,1720797046746,-500.0,0.00024657,2]
[331863592,1720797046755,-500.0,0.00025761,2]
[331863593,1720797046764,-4277.9,0.00026,2]
[331863790,1720797201282,1000.0,0.00025,25]
[331863795,1720797632601,150.5,0.0002499,62]
[331863796,1720797633070,150.5,0.0002498,62]
[331863797,1720797633714,150.5,0.0002497,62]
[331863799,1720797752320,150.5,0.00024921,62]
[331863800,1720797752868,235.19,0.00024911,62]
[331863802,1720797805423,45235.83903307,0.00016254,2]
[331863803,1720797834617,164.49158165,0.00016254,2]
[331863804,1720797838126,18406.99371497,0.00016254,2]
[331863805,1720797842101,155.25511355,0.00016254,2]
[331863806,1720797843711,496.45062974,0.00016254,2]
[331863807,1720797845501,264.16012684,0.00016254,2]
[331863808,1720797846019,2103.62892291,0.00016254,2]
[331863809,1720797846503,304.10670477,0.00016254,2]
[331863810,1720797853380,3776.426534,0.00016254,2]
[331863811,1720797854545,16254.80038427,0.00016254,2]
[331863812,1720797859849,3115.63800671,0.00016254,2]
[331863813,1720797867380,3776.426534,0.00016254,2]
[331863815,1720797941756,496.45062974,0.00016254,2]
[331863816,1720797942535,417.29730511,0.00016254,2]
[331863817,1720797946131,-540.58085513,0.00019701,2]
[331863818,1720797947354,2105.72844306,0.00016254,2]
[331863819,1720797950721,496.45062974,0.00016254,2]
[331863820,1720797969861,3115.63800671,0.00016254,2]
[331863821,1720797973382,3776.426534,0.00016254,2]
[331863824,1720798043878,3115.63800671,0.00016254,2]
[331863827,1720798073742,496.45062974,0.00016254,2]
[331863828,1720798078950,9624.76461366,0.00016255,2]
[331863830,1720798081896,3776.426534,0.00016254,2]
[331863833,1720798124870,3115.63800671,0.00016254,2]
[331863834,1720798148736,496.45062974,0.00016254,2]
[331863836,1720798155251,-1830.84769975,0.00018899,4]
[331863837,1720798155277,-150.0,0.000189,2]
[331863838,1720798155303,-300.0,0.00019164,2]
[331863839,1720798155323,-725.04696611,0.00019164,2]
[331863840,1720798155345,-154.65203293,0.00019165,2]
[331863841,1720798155367,-222.83479055,0.00019165,2]
[331863842,1720798155389,-154.93166857,0.00019165,2]
[331863843,1720798155409,-525.73842429,0.00019165,2]
[331863844,1720798155430,-207.84,0.00019165,2]
[331863845,1720798155452,-391.80627157,0.00019165,2]
[331863846,1720798155472,-155.97882791,0.00019165,2]
[331863847,1720798155493,-156.4037428,0.00019701,2]
[331863848,1720798155513,-8950.11889718,0.00019701,2]
[331863849,1720798155534,-3776.426534,0.00019701,2]
[331863850,1720798155558,-287.54934573,0.00019701,2]
[331863851,1720798155578,-154.60575532,0.00019701,2]
[331863852,1720798155598,-420.0,0.0002108,2]
[331863853,1720798155619,-156.56418552,0.00021095,2]
[331863854,1720798155640,-213.99985777,0.00021096,2]
[331863855,1720798156143,-105.69744323,0.00021096,2]
[331863856,1720798156167,-155.21482455,0.00021917,2]
[331863857,1720798157563,209.91280818,0.00019701,2]
[331863858,1720798161999,35.17492404,0.00018899,2]
[331863860,1720798197985,5176.25314382,0.00016255,2]
[331863861,1720798220930,1623.24740149,0.00016254,2]
[331863913,1720798238925,-5505.20654968,0.00018899,2]
[331863914,1720798238935,-35657.13504104,0.00018899,2]
[331863915,1720798238944,-1623.24740149,0.00018899,2]
[331863916,1720798238953,-155.05188196,0.00019165,2]
[331863917,1720798238963,-183.26650708,0.00019165,2]
[331863918,1720798238972,-300.0,0.000197,2]
[331863919,1720798238981,-412.59810264,0.00019701,2]
[331863920,1720798238990,-155.42805707,0.00019701,2]
[331863921,1720798238999,-154.65203293,0.00019701,2]
[331863922,1720798239008,-154.69831054,0.00019701,2]
[331863923,1720798239017,-9621.97492075,0.00019701,2]
[331863924,1720798239028,-3025.43583344,0.00019701,2]
[331863925,1720798239038,-11078.18304274,0.00019701,2]
[331863926,1720798239048,-399.0,0.00021671,2]
[331863927,1720798239058,-150.0,0.000233,2]
[331863928,1720798239067,-250.9742983,0.000235,2]
[331863929,1720798239077,-150.0,0.000236,2]
[331863930,1720798239086,-150.0,0.000236,2]
[331863931,1720798239095,-150.0,0.000238,2]
[331863932,1720798239105,-150.0,0.000238,2]
[331863933,1720798239116,-1128.35932363,0.00023887,2]
[331863934,1720798239125,-150.0,0.00024,2]
[331863935,1720798239135,-150.0,0.00024,2]
[331863936,1720798239144,-150.0,0.000243,2]
[331863937,1720798239154,-150.0,0.000243,2]
[331863938,1720798239163,-1491.05500079,0.0002448,2]
[331863939,1720798239173,-2400.39571371,0.0002448,2]
[331863940,1720798239183,-150.0,0.000245,2]
[331863941,1720798239193,-150.0,0.000245,2]
[331863942,1720798239204,-2313.37124604,0.00024556,2]
[331863943,1720798239214,-21487.5648727,0.00024647,3]
[331863944,1720798239223,-420.47960518,0.00024656,2]
[331863945,1720798239234,-500.0,0.00024656,2]
[331863946,1720798239245,-500.0,0.00024656,2]
[331863947,1720798239256,-500.0,0.00024656,2]
[331863948,1720798239265,-646.50587254,0.00024656,2]
[331863949,1720798239274,-500.0,0.00024656,2]
[331863950,1720798239283,-622.88402581,0.00024656,2]
[331863951,1720798239294,-500.0,0.00024656,2]
[331863952,1720798239304,-500.0,0.00024657,2]
[331863953,1720798239314,-500.0,0.00024657,2]
[331863954,1720798239327,-500.0,0.00024657,2]
[331863955,1720798239337,-618.13628608,0.00024657,2]
[331863956,1720798239346,-182.38310349,0.00024657,2]
[331863957,1720798239356,-514.36489926,0.00024657,2]
[331863958,1720798239371,-500.0,0.00024657,2]
[331863959,1720798239381,-500.0,0.00024657,2]
[331863960,1720798239391,-565.8,0.00024657,2]
[331863961,1720798239400,-500.0,0.00024657,2]
[331863962,1720798239410,-500.0,0.00024657,2]
[331863963,1720798239419,-500.0,0.00024657,2]
[331863964,1720798239429,-500.0,0.00024657,2]
[331863965,1720798239439,-500.0,0.00024657,2]
[331863966,1720798239449,-500.0,0.00024657,2]
[331863967,1720798239459,-500.0,0.00024657,2]
[331863968,1720798239469,-500.0,0.00024657,2]
[331863969,1720798239479,-500.0,0.00024657,2]
[331863970,1720798239488,-500.0,0.00024657,2]
[331863971,1720798239498,-500.0,0.00024657,2]
[331863972,1720798239508,-528.37570665,0.00024657,2]
[331863973,1720798239517,-500.0,0.00024657,2]
[331863974,1720798239527,-500.0,0.00024657,2]
[331863975,1720798239536,-549.45184196,0.00024657,2]
[331863976,1720798239546,-500.0,0.00024657,2]
[331863977,1720798239556,-500.0,0.00024657,2]
[331863978,1720798239566,-500.0,0.00024657,2]
[331863979,1720798239577,-200.0,0.00024657,2]
[331863980,1720798239586,-514.76384233,0.00024657,2]
[331863981,1720798239597,-500.0,0.00024657,2]
[331863982,1720798239607,-346.74020555,0.00024657,2]
[331863983,1720798239618,-500.0,0.00024657,2]
[331863984,1720798239628,-500.0,0.00024657,2]
[331863985,1720798239638,-500.0,0.00024657,2]
[331863986,1720798239648,-580.16,0.00024657,2]
[331863987,1720798239658,-500.0,0.00024657,2]
[331863988,1720798239667,-500.0,0.00024657,2]
[331863989,1720798239678,-500.0,0.00024657,2]
[331863990,1720798239687,-500.0,0.00024657,2]
[331863991,1720798239697,-500.0,0.00024657,2]
[331863992,1720798239706,-500.0,0.00024657,2]
[331863993,1720798239716,-545.62,0.00024657,2]
[331863994,1720798239726,-500.0,0.00024657,2]
[331863995,1720798239736,-513.0102623,0.00024657,2]
[331863996,1720798239745,-500.0,0.00024657,2]
[331863997,1720798239755,-500.0,0.00024657,2]
[331863998,1720798239765,-500.0,0.00024657,2]
[331863999,1720798239774,-527.95,0.00024657,2]
[331864000,1720798239784,-502.87580366,0.00024657,2]
[331864001,1720798239794,-500.0,0.00024657,2]
[331864002,1720798239803,-500.0,0.00024657,2]
[331864003,1720798239813,-517.57632176,0.00024657,2]
[331864004,1720798239823,-205.40601287,0.00024657,2]
[331864005,1720798239832,-571.91,0.00024657,2]
[331864006,1720798239842,-611.88,0.00024657,2]
[331864007,1720798239852,-500.0,0.00024657,2]
[331864008,1720798239862,-500.0,0.00024657,2]
[331864009,1720798239872,-500.0,0.00024657,2]
[331864010,1720798239882,-500.0,0.00024657,2]
[331864011,1720798239892,-500.0,0.00024657,2]
[331864012,1720798239903,-500.0,0.00024657,2]
[331864013,1720798239913,-500.0,0.00024657,2]
[331864014,1720798239922,-544.68042112,0.00024657,2]
[331864015,1720798239931,-500.0,0.00024657,2]
[331864016,1720798239941,-500.0,0.00024657,2]
[331864017,1720798239951,-500.0,0.00024657,2]
[331864018,1720798239960,-500.0,0.00024657,2]
[331864019,1720798239970,-513.30570969,0.00024657,2]
[331864020,1720798239980,-505.04975622,0.00024657,2]
[331864021,1720798239990,-500.0,0.00024657,2]
[331864022,1720798240001,-546.82809138,0.00024657,2]
[331864023,1720798240011,-500.0,0.00024657,2]
[331864024,1720798240021,-500.0,0.00024657,2]
[331864025,1720798240031,-200.0,0.00024657,7]
[331864026,1720798240209,-500.0,0.00024657,2]
[331864027,1720798240220,-500.0,0.00024657,2]
[331864028,1720798240231,-500.0,0.00024657,2]
[331864029,1720798240241,-500.0,0.00024657,2]
[331864030,1720798240255,-646.97,0.00024657,2]
[331864031,1720798240265,-500.0,0.00024657,2]
[331864032,1720798240275,-500.0,0.00024657,2]
[331864033,1720798240287,-593.98441545,0.00024657,2]
[331864034,1720798240296,-500.0,0.00024657,2]
[331864035,1720798240306,-500.0,0.00024657,2]
[331864036,1720798240316,-500.0,0.00024657,2]
[331864037,1720798240327,-519.03,0.00024657,2]
[331864038,1720798240337,-503.89638984,0.00024657,2]
[331864039,1720798240347,-500.0,0.00024657,2]
[331864040,1720798240357,-500.0,0.00024657,2]
[331864041,1720798240370,-500.0,0.00024657,2]
[331864042,1720798240381,-507.87182556,0.00024657,2]
[331864043,1720798240390,-500.0,0.00024657,2]
[331864045,1720798240401,-500.0,0.00024657,2]
[331864047,1720798240410,-500.0,0.00024657,2]
[331864048,1720798240420,-531.76,0.00024657,2]
[331864049,1720798240430,-500.0,0.00024657,2]
[331864050,1720798240440,-338.05536234,0.00024657,2]
[331864051,1720798240450,-500.0,0.00024657,2]
[331864052,1720798240460,-500.0,0.00024657,2]
[331864053,1720798240470,-500.0,0.00024657,2]
[331864054,1720798240480,-646.96,0.00024657,2]
[331864055,1720798240489,-535.04,0.00024657,2]
[331864056,1720798240498,-500.0,0.00024657,2]
[331864057,1720798240508,-500.0,0.00024657,2]
[331864058,1720798240517,-500.0,0.00024657,2]
[331864059,1720798240527,-538.3298014,0.00024657,2]
[331864060,1720798240537,-500.0,0.00024657,2]
[331864061,1720798240547,-500.0,0.00024657,2]
[331864062,1720798240557,-500.0,0.00024657,2]
[331864063,1720798240567,-500.0,0.00024657,2]
[331864064,1720798240577,-500.0,0.00024657,2]
[331864065,1720798240586,-500.0,0.00024657,2]
[331864066,1720798240596,-500.0,0.00024657,2]
[331864067,1720798240606,-548.58,0.00024657,2]
[331864068,1720798240617,-602.99,0.00024657,2]
[331864070,1720798240627,-500.0,0.00024657,2]
[331864072,1720798240635,-500.0,0.00024657,2]
[331864074,1720798240645,-500.0,0.00024657,2]
[331864076,1720798240655,-642.39864648,0.00024657,2]
[331864078,1720798240665,-500.0,0.00024657,2]
[331864080,1720798240674,-590.34,0.00024657,2]
[331864082,1720798240684,-500.0,0.00024657,2]
[331864084,1720798240693,-502.65,0.00024657,2]
[331864086,1720798240703,-571.03879832,0.00024657,2]
[331864088,1720798240713,-500.0,0.00024657,2]
[331864090,1720798240723,-500.0,0.00024657,2]
[331864092,1720798240732,-500.0,0.00024657,2]
[331864094,1720798240742,-500.0,0.00024657,2]
[331864096,1720798240751,-500.0,0.00024657,2]
[331864098,1720798240761,-500.0,0.00024657,2]
[331864100,1720798240770,-500.0,0.00024657,2]
[331864102,1720798240780,-500.0,0.00024657,2]
[331864104,1720798240789,-500.0,0.00024657,2]
[331864106,1720798240799,-679.35,0.00024657,2]
[331864108,1720798240810,-500.0,0.00024657,2]
[331864110,1720798240819,-500.0,0.00024657,2]
[331864112,1720798240828,-500.0,0.00024657,2]
[331864114,1720798240838,-500.0,0.00024657,2]
[331864116,1720798240847,-512.11343887,0.00024657,2]
[331864118,1720798240857,-500.0,0.00024657,2]
[331864120,1720798240871,-500.0,0.00024657,2]
[331864122,1720798240880,-500.0,0.00024657,2]
[331864124,1720798240890,-500.0,0.00024657,2]
[331864126,1720798240900,-500.0,0.00024657,2]
[331864128,1720798240908,-500.0,0.00024657,2]
[331864130,1720798240917,-1151.24,0.00024657,2]
[331864132,1720798240927,-500.0,0.00024657,2]
[331864134,1720798240937,-500.0,0.00024657,2]
[331864136,1720798240946,-516.19015606,0.00024657,2]
[331864138,1720798240956,-500.0,0.00024657,2]
[331864140,1720798240966,-500.0,0.00024657,2]
[331864142,1720798240975,-500.0,0.00024657,2]
[331864144,1720798240984,-500.0,0.00024657,2]
[331864146,1720798240995,-506.55752749,0.00024657,2]
[331864148,1720798241006,-500.0,0.00024657,2]
[331864150,1720798241015,-500.0,0.00024657,2]
[331864152,1720798241025,-358.97628857,0.00024657,2]
[331864154,1720798241034,-500.0,0.00024657,2]
[331864156,1720798241044,-500.0,0.00024657,2]
[331864158,1720798241054,-500.0,0.00024657,2]
[331864160,1720798241064,-500.9,0.00024657,2]
[331864162,1720798241074,-500.0,0.00024657,2]
[331864164,1720798241085,-182.59530827,0.00024657,2]
[331864166,1720798241094,-500.0,0.00024657,2]
[331864168,1720798241103,-500.0,0.00024657,2]
[331864170,1720798241114,-500.0,0.00024657,2]
[331864172,1720798241123,-500.0,0.00024657,2]
[331864174,1720798241132,-604.17,0.00024657,2]
[331864176,1720798241142,-500.0,0.00024657,2]
[331864178,1720798241152,-560.71,0.00024657,2]
[331864180,1720798241162,-642.23,0.00024657,2]
[331864182,1720798241171,-500.0,0.00024657,2]
[331864184,1720798241180,-500.0,0.00024657,2]
[331864186,1720798241190,-522.3034762,0.00024657,2]
[331864188,1720798241200,-500.0,0.00024657,2]
[331864190,1720798241209,-500.0,0.00024657,2]
[331864192,1720798241219,-500.0,0.00024657,2]
[331864194,1720798241228,-500.0,0.00024657,2]
[331864196,1720798241239,-500.0,0.00024657,2]
[331864198,1720798241252,-500.0,0.00024657,2]
[331864200,1720798241262,-614.66,0.00024657,2]
[331864202,1720798241271,-500.0,0.00024657,2]
[331864204,1720798241281,-500.0,0.00024657,2]
[331864206,1720798241292,-500.0,0.00024657,2]
[331864208,1720798241302,-500.0,0.00024657,2]
[331864210,1720798241312,-596.62,0.00024657,2]
[331864212,1720798241322,-500.0,0.00024657,2]
[331864214,1720798241332,-500.0,0.00024657,2]
[331864216,1720798241342,-500.0,0.00024657,2]
[331864218,1720798241351,-500.0,0.00024657,2]
[331864220,1720798241362,-597.43,0.00024657,2]
[331864222,1720798241371,-500.0,0.00024657,2]
[331864224,1720798241380,-638.05591686,0.00024657,2]
[331864226,1720798241389,-500.0,0.00024657,2]
[331864228,1720798241399,-664.2,0.00024657,2]
[331864230,1720798241408,-500.0,0.00024657,2]
[331864232,1720798241418,-2056.38,0.00024657,2]
[331864234,1720798241427,-298.13099166,0.00024657,2]
[331864236,1720798241436,-500.0,0.00024657,2]
[331864238,1720798241446,-500.0,0.00024657,2]
[331864240,1720798241455,-500.0,0.00024657,2]
[331864242,1720798241465,-500.0,0.00024657,2]
[331864244,1720798241474,-530.47802318,0.00024657,2]
[331864246,1720798241484,-500.0,0.00024657,2]
[331864248,1720798241493,-500.0,0.00024657,2]
[331864250,1720798241503,-500.0,0.00024657,2]
[331864252,1720798241512,-500.0,0.00024657,2]
[331864254,1720798241522,-565.98599694,0.00024657,2]
[331864256,1720798241532,-500.0,0.00024657,2]
[331864258,1720798241541,-500.0,0.00024657,2]
[331864260,1720798241551,-500.0,0.00024657,2]
[331864262,1720798241560,-500.0,0.00024657,2]
[331864264,1720798241570,-500.0,0.00024657,2]
[331864266,1720798241579,-500.0,0.00024657,2]
[331864268,1720798241589,-500.0,0.00024657,2]
[331864270,1720798241599,-500.0,0.00024657,2]
[331864272,1720798241608,-500.0,0.00024657,2]
[331864273,1720798241621,-903.6,0.00024657,2]
[331864275,1720798241631,-733.12,0.00024657,2]
[331864277,1720798241641,-500.0,0.00024657,2]
[331864278,1720798241653,-500.0,0.00024657,2]
[331864279,1720798241662,-317.08738027,0.00024657,2]
[331864280,1720798241671,-500.0,0.00024657,2]
[331864281,1720798241680,-500.0,0.00024657,2]
[331864282,1720798241689,-500.0,0.00024657,2]
[331864283,1720798241698,-500.0,0.00024657,2]
[331864284,1720798241708,-500.0,0.00024657,2]
[331864285,1720798241718,-500.0,0.00024657,2]
[331864286,1720798241728,-500.0,0.00024657,2]
[331864287,1720798241738,-504.79565684,0.00024657,2]
[331864288,1720798241748,-556.06,0.00024657,2]
[331864289,1720798241758,-500.0,0.00024657,2]
[331864290,1720798241767,-599.46,0.00024657,2]
[331864291,1720798241777,-500.0,0.00024657,2]
[331864292,1720798241786,-500.0,0.00024657,2]
[331864293,1720798241796,-534.88,0.00024657,2]
[331864294,1720798241807,-500.0,0.00024657,2]